fUST/lending_fUST_20240816
["ID","MTS","AMOUNT","RATE_DAILY","PERIOD"]
[335019710,1723746656435,-515.05521888,0.00046849,120]
[335019711,1723746656444,-500.0,0.00046849,30]
[335019712,1723746656454,-500.0,0.00046849,120]
[335019713,1723746656463,-256.3982475,0.00046849,120]
[335019714,1723746656473,-500.0,0.00046849,120]
[335019715,1723746656482,-511.74447353,0.00046849,120]
[335019716,1723746656494,-500.0,0.00046849,120]
[335019717,1723746656503,-500.0,0.00046849,20]
[335019718,1723746656513,-500.0,0.00046849,120]
[335019719,1723746656522,-502.28690449,0.00046849,120]
[335019720,1723746656531,-506.41415762,0.00046849,120]
[335019721,1723746656541,-1086.11,0.00046849,7]
[335019722,1723746656550,-500.0,0.00046849,120]
[335019723,1723746656560,-500.0,0.00046849,120]
[335019724,1723746656569,-500.0,0.00046849,120]
[335019725,1723746656579,-509.94940981,0.00046849,120]
[335019726,1723746656589,-500.0,0.00046849,120]
[335019727,1723746656599,-519.5935854,0.00046849,120]
[335019728,1723746656608,-500.0,0.00046849,120]
[335019729,1723746656617,-500.0,0.00046849,60]
[335019730,1723746656626,-500.0,0.00046849,120]
[335019731,1723746656635,-500.0,0.00046849,120]
[335019732,1723746656645,-500.0,0.00046849,120]
[335019733,1723746656654,-500.0,0.00046849,120]
[335019734,1723746656663,-500.0,0.00046849,120]
[335019735,1723746656672,-500.0,0.00046849,120]
[335019736,1723746656681,-500.0,0.00046849,120]
[335019737,1723746656691,-504.97025095,0.00046849,120]
[335019738,1723746656702,-500.0,0.00046849,120]
[335019739,1723746656711,-500.0,0.00046849,120]
[335019740,1723746656720,-500.0,0.00046849,120]
[335019741,1723746656729,-500.0,0.00046849,120]
[335019742,1723746656740,-508.62666402,0.00046849,120]
[335019743,1723746656749,-500.0,0.00046849,120]
[335019744,1723746656758,-503.80614927,0.00046849,120]
[335019745,1723746656767,-500.0,0.00046849,120]
[335019746,1723746656777,-238.43248681,0.00046849,120]
[335019747,1723746656786,-500.0,0.00046849,120]
[335019748,1723746656797,-500.0,0.00046849,120]
[335019749,1723746656807,-542.12372726,0.00046849,120]
[335019750,1723746656817,-500.0,0.00046849,120]
[335019751,1723746656826,-500.0,0.00046849,120]
[335019752,1723746656835,-500.0,0.00046849,120]
[335019753,1723746656844,-500.0,0.00046849,120]
[335019754,1723746656854,-500.0,0.00046849,120]
[335019755,1723746656863,-523.64237157,0.00046849,120]
[335019756,1723746656873,-500.0,0.00046849,120]
[335019757,1723746656882,-285.46548247,0.00046849,120]
[335019758,1723746656891,-500.0,0.00046849,120]
[335019759,1723746656901,-500.0,0.00046849,120]
[335019760,1723746656910,-500.0,0.00046849,120]
[335019761,1723746656920,-500.0,0.00046849,120]
[335019762,1723746656929,-500.0,0.00046849,120]
[335019763,1723746656938,-522.25838192,0.00046849,120]
[335019764,1723746656948,-500.0,0.00046849,120]
[335019765,1723746656957,-500.0,0.00046849,120]
[335019766,1723746656966,-500.0,0.00046849,120]
[335019767,1723746656976,-500.0,0.00046849,120]
[335019768,1723746656986,-500.0,0.00046849,120]
[335019769,1723746656995,-500.0,0.00046849,120]
[335019770,1723746657005,-500.0,0.00046849,120]
[335019771,1723746657014,-500.0,0.00046849,120]
[335019772,1723746657024,-500.0,0.00046849,120]
[335019773,1723746657033,-500.0,0.00046849,120]
[335019774,1723746657042,-500.0,0.00046849,120]
[335019775,1723746657052,-523.20088517,0.00046849,120]
[335019776,1723746657061,-500.0,0.00046849,120]
[335019777,1723746657071,-500.0,0.00046849,120]
[335019778,1723746657080,-500.0,0.00046849,120]
[335019779,1723746657091,-510.52752775,0.00046849,7]
[335019780,1723746657100,-509.77033415,0.00046849,120]
[335019781,1723746657110,-481.75569567,0.00046849,30]
[335019782,1723746657119,-500.0,0.00046849,120]
[335019783,1723746657129,-500.0,0.00046849,120]
[335019784,1723746657139,-500.0,0.00046849,120]
[335019785,1723746657148,-500.0,0.00046849,120]
[335019786,1723746657158,-236.01547497,0.00046849,120]
[335019787,1723746657168,-500.0,0.00046849,120]
[335019788,1723746657178,-500.0,0.00046849,120]
[335019789,1723746657187,-500.0,0.00046849,120]
[335019790,1723746657197,-500.0,0.00046849,120]
[335019791,1723746657207,-507.89146335,0.00046849,120]
[335019792,1723746657216,-506.32547992,0.00046849,120]
[335019793,1723746657226,-1103.72,0.00046849,120]
[335019794,1723746657235,-500.0,0.00046849,120]
[335019795,1723746657246,-500.0,0.00046849,120]
[335019796,1723746657255,-500.0,0.00046849,120]
[335019797,1723746657264,-730.6,0.00046849,120]
[335019798,1723746657273,-500.0,0.00046849,120]
[335019799,1723746657283,-500.0,0.00046849,120]
[335019800,1723746657293,-500.0,0.00046849,120]
[335019801,1723746657304,-500.0,0.00046849,120]
[335019802,1723746657314,-500.0,0.00046849,120]
[335019803,1723746657323,-500.0,0.00046849,120]
[335019804,1723746657334,-500.0,0.00046849,120]
[335019805,1723746657343,-500.0,0.00046849,120]
[335019806,1723746657353,-500.0,0.00046849,120]
[335019807,1723746657362,-500.0,0.00046849,120]
[335019808,1723746657373,-877.98,0.00046849,120]
[335019809,1723746657384,-500.0,0.00046849,120]
[335019810,1723746657393,-500.0,0.00046849,2]
[335019811,1723746657402,-500.0,0.00046849,120]
[335019812,1723746657411,-500.0,0.00046849,120]
[335019813,1723746657421,-511.80879,0.00046849,120]
[335019814,1723746657430,-554.88,0.00046849,120]
[335019815,1723746657439,-531.15,0.00046849,120]
[335019816,1723746657448,-472.56169498,0.00046849,120]
[335019817,1723746657458,-223.69320676,0.00046849,120]
[335019818,1723746657467,-500.0,0.00046849,120]
[335019819,1723746657477,-514.45262368,0.00046849,120]
[335019820,1723746657486,-500.0,0.00046849,120]
[335019821,1723746657496,-500.0,0.00046849,120]
[335019822,1723746657505,-500.0,0.00046849,2]
[335019823,1723746657515,-500.0,0.00046849,120]
[335019824,1723746657524,-500.0,0.00046849,120]
[335019825,1723746657533,-500.0,0.00046849,120]
[335019826,1723746657603,-500.0,0.00046849,120]
[335019827,1723746657612,-500.0,0.00046849,120]
[335019828,1723746657622,-503.04968747,0.00046849,120]
[335019829,1723746657631,-500.0,0.00046849,120]
[335019830,1723746657640,-504.0,0.00046849,120]
[335019831,1723746657650,-505.24994969,0.00046849,120]
[335019832,1723746657659,-500.0,0.00046849,120]
[335019833,1723746657668,-500.0,0.00046849,120]
[335019834,1723746657677,-500.0,0.00046849,120]
[335019835,1723746657686,-508.4712836,0.00046849,120]
[335019836,1723746657695,-500.0,0.00046849,120]
[335019837,1723746657703,-611.83015994,0.00046849,120]
[335019838,1723746657712,-500.0,0.00046849,120]
[335019839,1723746657720,-566.08305265,0.00046849,120]
[335019840,1723746657729,-500.0,0.00046849,120]
[335019841,1723746657740,-500.0,0.00046849,120]
[335019842,1723746657755,-500.0,0.00046849,120]
[335019843,1723746657766,-532.06832276,0.00046849,120]
[335019844,1723746657775,-500.0,0.00046849,120]
[335019845,1723746657785,-500.0,0.00046849,120]
[335019846,1723746657794,-500.0,0.00046849,120]
[335019847,1723746657804,-689.79,0.00046849,120]
[335019848,1723746657813,-594.92,0.00046849,120]
[335019849,1723746657822,-500.0,0.00046849,120]
[335019850,1723746657831,-500.0,0.00046849,120]
[335019851,1723746657841,-504.47820726,0.00046849,120]
[335019852,1723746657851,-572.19,0.00046849,120]
[335019853,1723746657860,-500.0,0.00046849,120]
[335019854,1723746657869,-500.0,0.00046849,120]
[335019855,1723746657879,-500.0,0.00046849,120]
[335019856,1723746657888,-500.0,0.00046849,120]
[335019857,1723746657897,-500.0,0.00046849,120]
[335019858,1723746657907,-500.0,0.00046849,120]
[335019859,1723746657916,-500.0,0.00046849,120]
[335019860,1723746657926,-500.0,0.00046849,120]
[335019861,1723746657935,-500.0,0.00046849,120]
[335019862,1723746657944,-500.0,0.00046849,120]
[335019863,1723746657954,-500.0,0.00046849,120]
[335019864,1723746657963,-624.35,0.00046849,120]
[335019865,1723746657973,-500.0,0.00046849,120]
[335019866,1723746657982,-506.01154544,0.00046849,120]
[335019867,1723746657994,-500.0,0.00046849,120]
[335019868,1723746658003,-670.38,0.00046849,120]
[335019869,1723746658012,-500.0,0.00046849,120]
[335019870,1723746658021,-642.79323214,0.00046849,120]
[335019871,1723746658031,-506.45694896,0.00046849,120]
[335019872,1723746658040,-500.0,0.00046849,120]
[335019873,1723746658052,-552.04159637,0.00046849,120]
[335019874,1723746658063,-500.0,0.00046849,120]
[335019875,1723746658072,-500.0,0.00046849,120]
[335019876,1723746658082,-500.0,0.00046849,120]
[335019877,1723746658091,-500.0,0.00046849,120]
[335019878,1723746658101,-500.0,0.00046849,120]
[335019879,1723746658111,-500.0,0.00046849,120]
[335019880,1723746658121,-500.0,0.00046849,120]
[335019881,1723746658131,-500.0,0.00046849,120]
[335019882,1723746658141,-579.3,0.00046849,120]
[335019883,1723746658151,-500.0,0.00046849,120]
[335019884,1723746658160,-500.80828887,0.00046849,120]
[335019885,1723746658170,-500.0,0.00046849,120]
[335019886,1723746658180,-502.03387557,0.00046849,120]
[335019887,1723746658191,-500.0,0.00046849,120]
[335019888,1723746658203,-500.0,0.00046849,120]
[335019889,1723746658212,-500.0,0.00046849,120]
[335019890,1723746658222,-534.34,0.00046849,120]
[335019891,1723746658232,-582.11,0.00046849,120]
[335019892,1723746658243,-595.26889214,0.00046849,120]
[335019893,1723746658253,-500.0,0.00046849,120]
[335019894,1723746658263,-503.76411208,0.00046849,120]
[335019895,1723746658273,-1073.3,0.00046849,120]
[335019896,1723746658283,-500.0,0.00046849,120]
[335019897,1723746658293,-503.24555776,0.00046849,120]
[335019898,1723746658306,-500.0,0.00046849,120]
[335019899,1723746658316,-500.0,0.00046849,120]
[335019900,1723746658326,-503.31822686,0.00046849,120]
[335019901,1723746658335,-500.0,0.00046849,120]
[335019902,1723746658346,-500.0,0.00046849,120]
[335019903,1723746658356,-500.0,0.00046849,120]
[335019904,1723746658365,-500.0,0.00046849,120]
[335019905,1723746658376,-500.0,0.00046849,120]
[335019906,1723746658386,-500.0,0.00046849,120]
[335019907,1723746658396,-500.0,0.00046849,120]
[335019908,1723746658405,-500.0,0.00046849,120]
[335019909,1723746658415,-500.0,0.00046849,120]
[335019910,1723746658424,-502.52552637,0.00046849,120]
[335019911,1723746658434,-500.0,0.00046849,120]
[335019912,1723746658444,-200.54715364,0.00046849,120]
[335019913,1723746658453,-500.0,0.00046849,120]
[335019914,1723746658463,-500.0,0.00046849,120]
[335019915,1723746658473,-500.0,0.00046849,120]
[335019916,1723746658483,-500.0,0.00046849,120]
[335019917,1723746658496,-509.99697858,0.00046849,120]
[335019918,1723746658505,-500.0,0.00046849,120]
[335019919,1723746658515,-500.0,0.00046849,120]
[335019920,1723746658524,-588.61,0.00046849,120]
[335019921,1723746658534,-500.0,0.00046849,120]
[335019922,1723746658544,-500.0,0.00046849,120]
[335019923,1723746658554,-500.0,0.00046849,120]
[335019924,1723746658564,-500.0,0.00046849,120]
[335019925,1723746658574,-500.0,0.00046849,120]
[335019926,1723746658583,-500.0,0.00046849,120]
[335019927,1723746658593,-500.0,0.00046849,120]
[335019928,1723746658602,-500.0,0.00046849,120]
[335019929,1723746658612,-500.0,0.00046849,120]
[335019930,1723746658622,-1183.46,0.00046849,120]
[335019931,1723746658632,-533.15,0.00046849,120]
[335019932,1723746658641,-553.9254321,0.00046849,120]
[335019933,1723746658651,-500.0,0.00046849,120]
[335019934,1723746658660,-500.0,0.00046849,120]
[335019935,1723746658670,-500.0,0.00046849,120]
[335019936,1723746658738,-500.0,0.00046849,120]
[335019937,1723746658748,-500.0,0.00046849,120]
[335019938,1723746658758,-500.0,0.00046849,120]
[335019939,1723746658767,-500.0,0.00046849,120]
[335019940,1723746658777,-681.71,0.00046849,120]
[335019941,1723746658787,-500.0,0.00046849,120]
[335019942,1723746658797,-500.0,0.00046849,120]
[335019943,1723746658807,-500.0,0.00046849,120]
[335019944,1723746658816,-500.0,0.00046849,2]
[335019945,1723746658825,-500.0,0.00046849,120]
[335019946,1723746658836,-500.0,0.00046849,120]
[335019947,1723746658845,-711.77,0.00046849,120]
[335019948,1723746658854,-500.0,0.00046849,120]
[335019949,1723746658864,-719.34,0.00046849,120]
[335019950,1723746658873,-500.0,0.00046849,120]
[335019951,1723746658884,-500.0,0.00046849,120]
[335019952,1723746658893,-500.0,0.00046849,120]
[335019953,1723746658903,-545.78,0.00046849,120]
[335019954,1723746658912,-558.78990627,0.00046849,120]
[335019955,1723746658922,-500.0,0.00046849,120]
[335019956,1723746658932,-500.0,0.00046849,120]
[335019957,1723746658941,-711.98,0.00046849,120]
[335019958,1723746658951,-500.0,0.00046849,120]
[335019959,1723746658960,-500.0,0.00046849,120]
[335019960,1723746658969,-500.0,0.00046849,120]
[335019961,1723746658978,-500.0,0.00046849,120]
[335019962,1723746658989,-500.0,0.00046849,120]
[335019963,1723746658998,-500.0,0.00046849,120]
[335019964,1723746659008,-500.0,0.00046849,120]
[335019965,1723746659017,-500.0,0.00046849,120]
[335019966,1723746659027,-516.69,0.00046849,120]
[335019967,1723746659037,-500.0,0.00046849,120]
[335019968,1723746659046,-500.0,0.00046849,120]
[335019969,1723746659056,-500.0,0.00046849,120]
[335019970,1723746659067,-500.0,0.00046849,120]
[335019971,1723746659077,-500.0,0.00046849,120]
[335019972,1723746659087,-500.0,0.00046849,120]
[335019973,1723746659097,-472.66810665,0.00046849,120]
[335019974,1723746659107,-956.31,0.00046849,120]
[335019975,1723746659117,-500.0,0.00046849,120]
[335019976,1723746659126,-510.31300158,0.00046849,120]
[335019977,1723746659136,-510.44083503,0.00046849,120]
[335019978,1723746659147,-503.56683525,0.00046849,120]
[335019979,1723746659157,-500.0,0.00046849,120]
[335019980,1723746659167,-500.0,0.00046849,120]
[335019981,1723746659177,-503.56450761,0.00046849,120]
[335019982,1723746659186,-1144.59,0.00046849,120]
[335019983,1723746659196,-500.0,0.00046849,120]
[335019984,1723746659205,-500.0,0.00046849,120]
[335019985,1723746659215,-500.0,0.00046849,120]
[335019986,1723746659225,-500.0,0.00046849,120]
[335019987,1723746659236,-500.0,0.00046849,120]
[335019988,1723746659247,-500.0,0.00046849,120]
[335019989,1723746659258,-506.77563459,0.00046849,120]
[335019990,1723746659267,-500.0,0.00046849,120]
[335019991,1723746659277,-500.0,0.00046849,120]
[335019992,1723746659287,-500.0,0.00046849,120]
[335019993,1723746659300,-500.0,0.00046849,120]
[335019994,1723746659310,-1749.62,0.00046849,120]
[335019995,1723746659319,-504.41781418,0.00046849,120]
[335019996,1723746659329,-500.0,0.00046849,120]
[335019997,1723746659340,-500.0,0.00046849,120]
[335019998,1723746659350,-500.0,0.00046849,120]
[335019999,1723746659359,-500.0,0.00046849,120]
[335020000,1723746659369,-985.89,0.00046849,120]
[335020001,1723746659380,-500.0,0.00046849,120]
[335020002,1723746659390,-500.0,0.00046849,120]
[335020003,1723746659400,-500.0,0.00046849,120]
[335020004,1723746659410,-509.11647723,0.00046849,120]
[335020005,1723746659420,-500.0,0.00046849,120]
[335020006,1723746659429,-2083.8,0.00046849,120]
[335020007,1723746659439,-500.0,0.00046849,120]
[335020008,1723746659449,-500.0,0.00046849,120]
[335020009,1723746659458,-505.31570134,0.00046849,120]
[335020010,1723746659468,-601.89,0.00046849,120]
[335020011,1723746659478,-509.01977614,0.00046849,120]
[335020012,1723746659489,-502.80914322,0.00046849,120]
[335020013,1723746659498,-500.0,0.00046849,120]
[335020014,1723746659508,-541.46,0.00046849,120]
[335020015,1723746659519,-207.054477,0.00046849,120]
[335020016,1723746659529,-500.0,0.00046849,120]
[335020017,1723746659539,-500.0,0.00046849,120]
[335020018,1723746659548,-500.0,0.00046849,120]
[335020019,1723746659558,-510.21,0.00046849,120]
[335020020,1723746659568,-2292.47,0.00046849,120]
[335020021,1723746659577,-508.23031133,0.00046849,120]
[335020022,1723746659587,-509.58512864,0.00046849,120]
[335020023,1723746659596,-500.0,0.00046849,120]
[335020024,1723746659606,-500.0,0.00046849,120]
[335020025,1723746659615,-500.0,0.00046849,120]
[335020026,1723746659624,-500.0,0.00046849,120]
[335020027,1723746659633,-500.0,0.00046849,120]
[335020028,1723746659642,-500.0,0.00046849,120]
[335020029,1723746659652,-630.71,0.00046849,120]
[335020030,1723746659662,-906.51,0.00046849,120]
[335020031,1723746659671,-466.16086276,0.00046849,120]
[335020032,1723746659681,-500.0,0.00046849,120]
[335020033,1723746659690,-500.0,0.00046849,120]
[335020034,1723746659699,-503.51845646,0.00046849,120]
[335020035,1723746659709,-500.0,0.00046849,120]
[335020036,1723746659772,-632.04,0.00046849,120]
[335020037,1723746659782,-500.0,0.00046849,120]
[335020038,1723746659791,-547.89154016,0.00046849,120]
[335020039,1723746659802,-260.7301887,0.00046849,120]
[335020040,1723746659812,-2577.74,0.00046849,120]
[335020041,1723746659822,-527.18733205,0.00046849,120]
[335020042,1723746659831,-500.92905946,0.00046849,120]
[335020043,1723746659841,-500.0,0.00046849,120]
[335020044,1723746659850,-500.0,0.00046849,120]
[335020045,1723746659859,-500.0,0.00046849,120]
[335020046,1723746659868,-507.67836964,0.00046849,120]
[335020047,1723746659878,-500.0,0.00046849,120]
[335020048,1723746659887,-500.0,0.00046849,120]
[335020049,1723746659896,-505.51402753,0.00046849,120]
[335020050,1723746659905,-500.0,0.00046849,120]
[335020051,1723746659915,-500.0,0.00046849,120]
[335020052,1723746659924,-500.0,0.00046849,120]
[335020053,1723746659933,-500.0,0.00046849,120]
[335020054,1723746659943,-768.02,0.00046849,120]
[335020055,1723746659952,-511.47185291,0.00046849,120]
[335020056,1723746659961,-1592.97,0.00046849,120]
[335020057,1723746659972,-500.0,0.00046849,120]
[335020058,1723746659981,-500.0,0.00046849,120]
[335020059,1723746659992,-500.0,0.00046849,120]
[335020060,1723746660002,-500.0,0.00046849,120]
[335020061,1723746660011,-500.0,0.00046849,120]
[335020062,1723746660021,-500.0,0.00046849,120]
[335020063,1723746660030,-500.0,0.00046849,120]
[335020064,1723746660040,-506.66210793,0.00046849,120]
[335020065,1723746660050,-500.0,0.00046849,120]
[335020066,1723746660060,-500.0,0.00046849,120]
[335020067,1723746660070,-842.48,0.00046849,120]
[335020068,1723746660080,-635.42793773,0.00046849,120]
[335020069,1723746660090,-500.0,0.00046849,120]
[335020070,1723746660099,-500.0,0.00046849,120]
[335020071,1723746660109,-500.0,0.00046849,120]
[335020072,1723746660119,-500.0,0.00046849,120]
[335020073,1723746660129,-595.38,0.00046849,120]
[335020074,1723746660139,-500.0,0.00046849,120]
[335020075,1723746660150,-500.0,0.00046849,120]
[335020076,1723746660159,-387.24154549,0.00046849,120]
[335020077,1723746660169,-590.19,0.00046849,120]
[335020078,1723746660179,-500.0,0.00046849,120]
[335020079,1723746660188,-500.0,0.00046849,120]
[335020080,1723746660198,-500.0,0.00046849,120]
[335020081,1723746660208,-500.0,0.00046849,120]
[335020082,1723746660217,-500.0,0.00046849,120]
[335020083,1723746660227,-543.65,0.00046849,120]
[335020084,1723746660236,-500.0,0.00046849,120]
[335020085,1723746660249,-500.0,0.00046849,120]
[335020086,1723746660258,-1230.87,0.00046849,120]
[335020087,1723746660267,-500.0,0.00046849,120]
[335020088,1723746660276,-843.52,0.00046849,120]
[335020089,1723746660286,-500.0,0.00046849,120]
[335020090,1723746660298,-500.0,0.00046849,120]
[335020091,1723746660307,-500.0,0.00046849,120]
[335020092,1723746660317,-1658.43,0.00046849,120]
[335020093,1723746660326,-500.0,0.00046849,120]
[335020094,1723746660335,-512.18068449,0.00046849,120]
[335020095,1723746660346,-500.0,0.00046849,120]
[335020096,1723746660356,-500.0,0.00046849,120]
[335020097,1723746660365,-500.0,0.00046849,60]
[335020098,1723746660377,-500.0,0.00046849,120]
[335020099,1723746660386,-4344.56,0.00046849,120]
[335020100,1723746660395,-4226.85,0.00046849,120]
[335020101,1723746660405,-500.0,0.00046849,120]
[335020102,1723746660414,-503.94595969,0.00046849,120]
[335020103,1723746660424,-2716.56,0.00046849,120]
[335020104,1723746660435,-500.0,0.00046849,120]
[335020105,1723746660445,-500.0,0.00046849,120]
[335020106,1723746660455,-500.0,0.00046849,120]
[335020107,1723746660466,-1417.57,0.00046849,21]
[335020108,1723746660477,-500.0,0.00046849,120]
[335020109,1723746660489,-500.0,0.00046849,120]
[335020110,1723746660499,-500.0,0.00046849,30]
[335020111,1723746660509,-500.0,0.00046849,2]
[335020112,1723746660518,-531.93927027,0.00046849,120]
[335020113,1723746660527,-500.0,0.00046849,120]
[335020114,1723746660537,-500.0,0.00046849,120]
[335020115,1723746660546,-637.54,0.00046849,120]
[335020116,1723746660557,-500.0,0.00046849,120]
[335020117,1723746660566,-500.0,0.00046849,120]
[335020118,1723746660576,-509.30063614,0.00046849,120]
[335020119,1723746660586,-200.0,0.00046873,2]
[335020120,1723746660595,-200.0,0.00046873,2]
[335020121,1723746660605,-10000.0,0.00047,120]
[335020122,1723746660615,-150.0,0.00047,90]
[335020123,1723746660624,-1168.87266189,0.00047067,28]
[335020124,1723746660634,-500.0,0.00047123,120]
[335020125,1723746660643,-502.02979669,0.00047123,120]
[335020126,1723746660653,-502.53330438,0.00047123,120]
[335020127,1723746660663,-500.0,0.00047123,120]
[335020128,1723746660673,-500.0,0.00047123,120]
[335020129,1723746660744,-500.0,0.00047123,120]
[335020130,1723746660754,-500.0,0.00047123,120]
[335020131,1723746660765,-500.0,0.00047123,120]
[335020132,1723746660776,-500.0,0.00047123,120]
[335020133,1723746660785,-486.09969097,0.00047123,120]
[335020134,1723746660795,-500.0,0.00047123,120]
[335020135,1723746660805,-500.0,0.00047123,120]
[335020136,1723746660815,-500.0,0.00047123,120]
[335020137,1723746660825,-500.0,0.00047123,120]
[335020138,1723746660835,-500.0,0.00047123,120]
[335020139,1723746660845,-505.42697462,0.00047123,120]
[335020140,1723746660855,-565.47,0.00047123,120]
[335020141,1723746660865,-500.0,0.00047123,120]
[335020142,1723746660875,-187.35497862,0.00047123,120]
[335020143,1723746660884,-514.99070329,0.00047123,120]
[335020144,1723746660893,-500.0,0.00047123,120]
[335020145,1723746660903,-500.0,0.00047123,120]
[335020146,1723746660913,-500.0,0.00047123,7]
[335020147,1723746660923,-500.0,0.00047123,120]
[335020148,1723746660932,-508.13991064,0.00047123,120]
[335020149,1723746660942,-507.86272351,0.00047123,120]
[335020150,1723746660951,-500.0,0.00047123,120]
[335020151,1723746660961,-375.31583516,0.00047123,120]
[335020152,1723746660971,-500.0,0.00047123,120]
[335020153,1723746660981,-500.0,0.00047123,120]
[335020154,1723746660996,-527.14540525,0.00047123,120]
[335020155,1723746661005,-200.0,0.00047123,7]
[335020156,1723746661020,-500.0,0.00047123,120]
[335020157,1723746661029,-500.0,0.00047123,120]
[335020158,1723746661039,-532.57422107,0.00047123,120]
[335020159,1723746661049,-506.04159792,0.00047123,120]
[335020160,1723746661058,-500.0,0.00047123,120]
[335020161,1723746661068,-500.0,0.00047123,120]
[335020162,1723746661078,-500.0,0.00047123,120]
[335020163,1723746661088,-500.0,0.00047123,120]
[335020164,1723746661098,-500.0,0.00047123,120]
[335020165,1723746661108,-500.0,0.00047123,120]
[335020166,1723746661118,-500.0,0.00047123,120]
[335020167,1723746661128,-500.0,0.00047123,120]
[335020168,1723746661137,-500.0,0.00047123,120]
[335020169,1723746661147,-500.0,0.00047123,120]
[335020170,1723746661157,-500.0,0.00047123,120]
[335020171,1723746661167,-300.0,0.00047123,120]
[335020172,1723746661185,-500.0,0.00047123,120]
[335020173,1723746661206,-500.0,0.00047123,120]
[335020174,1723746661226,-500.0,0.00047123,120]
[335020175,1723746661248,-156.19251539,0.00047123,120]
[335020176,1723746661268,-500.0,0.00047123,120]
[335020177,1723746661287,-500.0,0.00047123,120]
[335020178,1723746661308,-2916.71,0.00047123,120]
[335020179,1723746661323,-500.0,0.00047123,120]
[335020180,1723746661344,-500.0,0.00047123,120]
[335020181,1723746661363,-500.0,0.00047123,120]
[335020182,1723746661385,-573.39530144,0.00047123,120]
[335020183,1723746661401,-500.0,0.00047123,120]
[335020184,1723746661419,-631.47498351,0.00047123,30]
[335020185,1723746661436,-500.0,0.00047123,120]
[335020186,1723746661450,-500.0,0.00047123,120]
[335020187,1723746661467,-500.0,0.00047123,120]
[335020188,1723746661482,-500.0,0.00047123,20]
[335020189,1723746661505,-517.11385387,0.00047123,120]
[335020190,1723746661521,-1086.11,0.00047123,7]
[335020191,1723746661536,-500.0,0.00047123,120]
[335020192,1723746661551,-500.0,0.00047123,120]
[335020193,1723746661566,-500.0,0.00047123,120]
[335020194,1723746661582,-500.0,0.00047123,120]
[335020195,1723746661597,-500.0,0.00047123,120]
[335020196,1723746661612,-500.0,0.00047123,60]
[335020197,1723746661629,-500.0,0.00047123,120]
[335020198,1723746661645,-500.0,0.00047123,120]
[335020199,1723746661661,-441.75533581,0.00047123,120]
[335020200,1723746661676,-500.0,0.00047123,120]
[335020201,1723746661691,-500.0,0.00047123,120]
[335020202,1723746661706,-500.0,0.00047123,120]
[335020203,1723746661719,-500.0,0.00047123,120]
[335020204,1723746661736,-500.0,0.00047123,120]
[335020205,1723746661756,-502.96860766,0.00047123,120]
[335020206,1723746661771,-500.0,0.00047123,120]
[335020207,1723746661785,-500.0,0.00047123,120]
[335020208,1723746661800,-500.0,0.00047123,120]
[335020209,1723746661816,-500.0,0.00047123,120]